[Event "Championnat d'Europe de Blitz"]
[Date "2024.12.09"]
[White "Dvirnyy, Danyyil"]
[Black "Safarli, Eltaj"]
[WhiteElo "2491"]
[BlackElo "2610"]
[Round "10.12"]
[Result "1/2-1/2"]
[TimeControl "180+2"]

1. e4 {[%emt 00:17:59] [%clk 00:03:02]} c5 {[%clk 00:03:03]} 2. Nf3 {[%emt
00:00:02] [%clk 00:03:02]} e6 {[%emt 00:00:01] [%clk 00:03:04]} 3. d4 {[%clk
00:03:03]} cxd4 {[%emt 00:00:02] [%clk 00:03:05]} 4. Nxd4 {[%emt 00:00:01] [%clk
00:03:04]} Nc6 {[%clk 00:03:05]} 5. Nc3 {[%emt 00:00:08] [%clk 00:02:58]} Bc5
{[%emt 00:00:02] [%clk 00:03:05]} 6. Nb3 {[%emt 00:00:31] [%clk 00:02:30]} Bb6
{[%emt 00:00:01] [%clk 00:03:06]} 7. Bd3 {[%emt 00:00:05] [%clk 00:02:27]} Nge7
{[%emt 00:00:02] [%clk 00:03:06]} 8. O-O {[%emt 00:00:02] [%clk 00:02:26]} O-O
{[%emt 00:00:02] [%clk 00:03:06]} 9. Kh1 {[%emt 00:00:32] [%clk 00:01:56]} d5
{[%emt 00:00:05] [%clk 00:03:03]} 10. Bd2 {[%emt 00:00:13] [%clk 00:01:45]} Ne5
{[%emt 00:00:33] [%clk 00:02:33]} 11. a4 {[%emt 00:00:20] [%clk 00:01:26]} Nxd3
{[%emt 00:00:05] [%clk 00:02:31]} 12. cxd3 {[%emt 00:00:01] [%clk 00:01:27]} a6
{[%emt 00:00:42] [%clk 00:01:51]} 13. Bf4 {[%emt 00:00:03] [%clk 00:01:25]} f6
{[%emt 00:00:23] [%clk 00:01:30]} 14. Bg3 {[%emt 00:00:03] [%clk 00:01:24]} e5
{[%emt 00:00:02] [%clk 00:01:30]} 15. d4 {[%emt 00:00:16] [%clk 00:01:10]} dxe4
{[%emt 00:00:24] [%clk 00:01:08]} 16. dxe5 {[%emt 00:00:06] [%clk 00:01:06]} Be6
{[%emt 00:00:09] [%clk 00:01:01]} 17. exf6 {[%emt 00:00:07] [%clk 00:01:01]}
Rxf6 {[%emt 00:00:02] [%clk 00:01:01]} 18. Nxe4 {[%emt 00:00:14] [%clk
00:00:49]} Qxd1 {[%emt 00:00:06] [%clk 00:00:57]} 19. Nxf6+ {[%emt 00:00:01]
[%clk 00:00:50]} gxf6 {[%emt 00:00:01] [%clk 00:00:58]} 20. Rfxd1 {[%emt
00:00:02] [%clk 00:00:50]} Bxb3 {[%emt 00:00:01] [%clk 00:00:59]} 21. Rd7 {[%emt
00:00:01] [%clk 00:00:51]} Nd5 {[%emt 00:00:04] [%clk 00:00:57]} 22. a5 {[%emt
00:00:17] [%clk 00:00:37]} Bc5 {[%emt 00:00:12] [%clk 00:00:47]} 23. Rxb7 {[%emt
00:00:02] [%clk 00:00:36]} Bb4 {[%emt 00:00:05] [%clk 00:00:44]} 24. Rc1 {[%emt
00:00:07] [%clk 00:00:31]} Ba4 {[%emt 00:00:13] [%clk 00:00:34]} 25. Rc4 {[%emt
00:00:10] [%clk 00:00:22]} Re8 {[%emt 00:00:10] [%clk 00:00:26]} 26. h4 {[%emt
00:00:01] [%clk 00:00:23]} Bb5 {[%emt 00:00:12] [%clk 00:00:16]} 27. Rg4+ {[%emt
00:00:02] [%clk 00:00:24]} Kh8 {[%emt 00:00:04] [%clk 00:00:13]} 28. Rd4 {[%emt
00:00:06] [%clk 00:00:20]} Rd8 {[%emt 00:00:03] [%clk 00:00:12]} 29. h5 {[%emt
00:00:11] [%clk 00:00:11]} Bxa5 {[%emt 00:00:04] [%clk 00:00:11]} 30. h6 {[%emt
00:00:01] [%clk 00:00:12]} Bc6 {[%emt 00:00:03] [%clk 00:00:10]} 31. Rf7 {[%emt
00:00:01] [%clk 00:00:12]} Bb6 {[%emt 00:00:02] [%clk 00:00:10]} 32. Rg4 {[%emt
00:00:01] [%clk 00:00:13]} Rg8 {[%emt 00:00:09] [%clk 00:00:04]} 33. Rc4 {[%emt
00:00:09] [%clk 00:00:05]} Bb5 {[%emt 00:00:01] [%clk 00:00:05]} 34. Re4 {[%clk
00:00:06]} Bd3 {[%emt 00:00:03] [%clk 00:00:04]} 35. Re6 {[%emt 00:00:01] [%clk
00:00:07]} Bc5 {[%emt 00:00:02] [%clk 00:00:04]} 36. Rd7 {[%emt 00:00:02] [%clk
00:00:08]} Nb4 {[%emt 00:00:01] [%clk 00:00:05]} 37. Rxf6 {[%emt 00:00:03] [%clk
00:00:07]} Re8 {[%emt 00:00:02] [%clk 00:00:05]} 38. Re6 {[%emt 00:00:01] [%clk
00:00:07]} Rf8 {[%emt 00:00:03] [%clk 00:00:04]} 39. Bd6 {[%emt 00:00:02] [%clk
00:00:07]} Bxd6 {[%emt 00:00:02] [%clk 00:00:04]} 40. Rexd6 {[%emt 00:00:03]
[%clk 00:00:06]} Bg6 {[%emt 00:00:01] [%clk 00:00:05]} 41. Rb7 {[%emt 00:00:02]
[%clk 00:00:06]} Nd3 {[%emt 00:00:02] [%clk 00:00:06]} 42. f3 {[%emt 00:00:02]
[%clk 00:00:06]} a5 {[%emt 00:00:01] [%clk 00:00:06]} 43. Rb5 {[%emt 00:00:03]
[%clk 00:00:05]} a4 {[%emt 00:00:01] [%clk 00:00:08]} 44. Rd4 {[%clk 00:00:06]}
Nf2+ {[%emt 00:00:07] [%clk 00:00:03]} 45. Kh2 {[%emt 00:00:01] [%clk 00:00:07]}
Kg8 {[%emt 00:00:03] [%clk 00:00:03]} 46. Rxa4 {[%emt 00:00:01] [%clk 00:00:07]}
Be8 {[%emt 00:00:01] [%clk 00:00:05]} 47. Rg5+ {[%emt 00:00:01] [%clk 00:00:07]}
Kh8 {[%clk 00:00:06]} 48. Rd4 {[%emt 00:00:01] [%clk 00:00:08]} Bg6 {[%emt
00:00:02] [%clk 00:00:06]} 49. Re5 {[%clk 00:00:09]} Nd3 {[%emt 00:00:01] [%clk
00:00:06]} 50. Re7 {[%emt 00:00:02] [%clk 00:00:10]} Nxb2 {[%emt 00:00:01] [%clk
00:00:07]} 51. Re3 {[%emt 00:00:03] [%clk 00:00:09]} Rc8 {[%emt 00:00:02] [%clk
00:00:07]} 52. Rc3 {[%clk 00:00:10]} Ra8 {[%emt 00:00:02] [%clk 00:00:08]} 53.
Rd6 {[%emt 00:00:02] [%clk 00:00:09]} Kg8 {[%emt 00:00:02] [%clk 00:00:08]} 54.
Rb3 {[%emt 00:00:03] [%clk 00:00:08]} Nc4 {[%clk 00:00:09]} 55. Rd4 {[%emt
00:00:01] [%clk 00:00:09]} Ne5 {[%emt 00:00:01] [%clk 00:00:10]} 56. Rb6 {[%clk
00:00:10]} Nf7 {[%emt 00:00:01] [%clk 00:00:11]} 57. Rg4 {[%emt 00:00:02] [%clk
00:00:10]} Nxh6 {[%emt 00:00:02] [%clk 00:00:12]} 58. Rgxg6+ {[%emt 00:00:01]
[%clk 00:00:11]} hxg6 {[%clk 00:00:13]} 59. Rxg6+ {[%clk 00:00:12]} Kh7 {[%clk
00:00:14]} 60. Rb6 {[%emt 00:00:01] [%clk 00:00:13]} Nf5 {[%emt 00:00:02] [%clk
00:00:14]} 61. g4 {[%emt 00:00:01] [%clk 00:00:14]} Nd4 {[%clk 00:00:15]} 62.
Kg3 {[%emt 00:00:01] [%clk 00:00:15]} Rf8 {[%emt 00:00:02] [%clk 00:00:15]} 63.
Rb7+ {[%emt 00:00:04] [%clk 00:00:14]} Kg8 {[%emt 00:00:04] [%clk 00:00:12]} 64.
g5 {[%emt 00:00:03] [%clk 00:00:14]} Rxf3+ {[%emt 00:00:04] [%clk 00:00:10]} 65.
Kg4 {[%clk 00:00:15]} Rf1 {[%emt 00:00:03] [%clk 00:00:09]} 66. g6 {[%emt
00:00:01] [%clk 00:00:16]} Ne6 {[%emt 00:00:04] [%clk 00:00:07]} 67. Rb8+ {[%emt
00:00:01] [%clk 00:00:17]} Kg7 {[%emt 00:00:01]} 68. Rb6 {[%clk 00:00:19]} Kf6
{[%emt 00:00:05] [%clk 00:00:06]} 69. g7 {[%emt 00:00:01] [%clk 00:00:19]} Rg1+
{[%emt 00:00:01] [%clk 00:00:07]} 70. Kf3 {[%emt 00:00:01] [%clk 00:00:21]} Rxg7
{[%emt 00:00:01] [%clk 00:00:08]} 71. Ke4 {[%emt 00:00:01] [%clk 00:00:21]} Rg4+
{[%emt 00:00:03] [%clk 00:00:06]} 72. Ke3 {[%emt 00:00:02] [%clk 00:00:23]} Ke5
{[%emt 00:00:01] [%clk 00:00:07]} 73. Rb5+ {[%emt 00:00:01] [%clk 00:00:24]} Kd6
{[%clk 00:00:08]} 74. Rb6+ {[%clk 00:00:25]} Kd5 {[%emt 00:00:01] [%clk
00:00:10]} 75. Rb5+ {[%clk 00:00:27]} Nc5 {[%clk 00:00:11]} 76. Rb8 {[%emt
00:00:01] [%clk 00:00:28]} Ke5 {[%emt 00:00:01] [%clk 00:00:11]} 77. Re8+ {[%emt
00:00:01] [%clk 00:00:29]} Ne6 {[%clk 00:00:12]} 78. Ke2 {[%clk 00:00:30]} Rg3
{[%emt 00:00:02] [%clk 00:00:12]} 79. Kf2 {[%clk 00:00:31]} Ra3 {[%emt 00:00:01]
[%clk 00:00:13]} 80. Ke2 {[%emt 00:00:01] [%clk 00:00:33]} Kd5 {[%clk 00:00:14]}
81. Re7 {[%emt 00:00:01] [%clk 00:00:33]} Nf4+ {[%emt 00:00:02] [%clk 00:00:14]}
82. Kf2 {[%emt 00:00:02] [%clk 00:00:33]} Kd4 {[%emt 00:00:02] [%clk 00:00:14]}
83. Re8 {[%emt 00:00:01] [%clk 00:00:33]} Nd3+ {[%emt 00:00:03] [%clk 00:00:14]}
84. Ke2 {[%emt 00:00:02] [%clk 00:00:33]} Ne5 {[%emt 00:00:01] [%clk 00:00:15]}
85. Rd8+ {[%emt 00:00:07] [%clk 00:00:29]} Ke4 {[%clk 00:00:16]} 86. Re8 {[%emt
00:00:01] [%clk 00:00:30]} Ra2+ {[%emt 00:00:01] [%clk 00:00:17]} 87. Kd1 {[%clk
00:00:31]} Kd3 {[%emt 00:00:02] [%clk 00:00:17]} 88. Rd8+ {[%emt 00:00:01] [%clk
00:00:31]} Kc3 {[%emt 00:00:02] [%clk 00:00:18]} 89. Rc8+ {[%emt 00:00:02] [%clk
00:00:30]} Nc4 {[%emt 00:00:02] [%clk 00:00:19]} 90. Ke1 {[%clk 00:00:31]} Kd4
{[%emt 00:00:02] [%clk 00:00:19]} 91. Rd8+ {[%emt 00:00:01] [%clk 00:00:31]} Ke4
{[%emt 00:00:02] [%clk 00:00:20]} 92. Re8+ {[%clk 00:00:32]} Ne5 {[%emt
00:00:01] [%clk 00:00:21]} 93. Kd1 {[%emt 00:00:02] [%clk 00:00:32]} Rh2 {[%emt
00:00:03] [%clk 00:00:20]} 94. Ke1 {[%emt 00:00:01] [%clk 00:00:32]} Kd4 {[%emt
00:00:04] [%clk 00:00:20]} 95. Kd1 {[%emt 00:00:06] [%clk 00:00:28]} Nf3 {[%emt
00:00:05] [%clk 00:00:17]} 96. Rd8+ {[%emt 00:00:07] [%clk 00:00:22]} Kc3 {[%emt
00:00:01] [%clk 00:00:17]} 97. Ra8 {[%emt 00:00:11] [%clk 00:00:13]} Nd4 {[%emt
00:00:12] [%clk 00:00:08]} 98. Ra3+ {[%emt 00:00:02] [%clk 00:00:13]} Nb3 {[%emt
00:00:04] [%clk 00:00:06]} 99. Ra8 {[%emt 00:00:01] [%clk 00:00:14]} Kd3 {[%emt
00:00:02] [%clk 00:00:07]} 100. Rd8+ {[%emt 00:00:07] [%clk 00:00:08]} Nd4
{[%emt 00:00:01] [%clk 00:00:08]} 101. Kc1 {[%emt 00:00:02] [%clk 00:00:08]}
Rc2+ {[%emt 00:00:03] [%clk 00:00:08]} 102. Kb1 {[%emt 00:00:02] [%clk
00:00:08]} Rc4 {[%emt 00:00:02] [%clk 00:00:09]} 103. Kb2 {[%emt 00:00:01] [%clk
00:00:08]} Rb4+ {[%emt 00:00:03] [%clk 00:00:07]} 104. Kc1 {[%emt 00:00:02]
[%clk 00:00:08]} Rb7 {[%emt 00:00:04] [%clk 00:00:05]} 105. Rd5 {[%emt 00:00:03]
[%clk 00:00:07]} Kc4 {[%emt 00:00:02] [%clk 00:00:06]} 106. Rd8 {[%clk
00:00:08]} Kc3 {[%emt 00:00:03] [%clk 00:00:05]} 107. Rc8+ {[%emt 00:00:01]
[%clk 00:00:09]} Kd3 {[%clk 00:00:07]} 108. Rd8 {[%emt 00:00:01] [%clk
00:00:10]} Rb6 {[%emt 00:00:01] [%clk 00:00:07]} 109. Rd7 {[%emt 00:00:02] [%clk
00:00:10]} Rb8 {[%emt 00:00:01] [%clk 00:00:08]} 110. Rd5 {[%emt 00:00:03] [%clk
00:00:10]} Rc8+ {[%emt 00:00:03] [%clk 00:00:07]} 111. Kb2 {[%clk 00:00:11]}
Rc2+ {[%emt 00:00:01] [%clk 00:00:07]} 112. Kb1 {[%emt 00:00:01] [%clk
00:00:12]} Rd2 {[%emt 00:00:02] [%clk 00:00:08]} 113. Rd8 {[%emt 00:00:02] [%clk
00:00:11]} Kc3 {[%emt 00:00:03] [%clk 00:00:08]} 114. Rc8+ {[%clk 00:00:12]} Kb4
{[%emt 00:00:01] [%clk 00:00:09]} 115. Kc1 {[%emt 00:00:03] [%clk 00:00:11]} Rd3
{[%emt 00:00:02] [%clk 00:00:09]} 116. Rb8+ {[%emt 00:00:02] [%clk 00:00:11]}
Nb5 {[%emt 00:00:02] [%clk 00:00:09]} 117. Kc2 {[%emt 00:00:01] [%clk 00:00:12]}
Rd5 {[%emt 00:00:03] [%clk 00:00:08]} 118. Rb7 {[%emt 00:00:02] [%clk 00:00:11]}
Kc4 {[%emt 00:00:01] [%clk 00:00:10]} 119. Rb8 {[%emt 00:00:02] [%clk 00:00:12]}
Nd4+ {[%emt 00:00:03] [%clk 00:00:08]} 120. Kb2 {[%clk 00:00:13]} Kd3 {[%emt
00:00:02] [%clk 00:00:09]} 121. Rb7 {[%emt 00:00:01] [%clk 00:00:13]} Rc5 {[%emt
00:00:04] [%clk 00:00:07]} 122. Rb8 {[%emt 00:00:02] [%clk 00:00:13]} Rc2+
{[%emt 00:00:01] [%clk 00:00:08]} 123. Kb1 {[%emt 00:00:01] [%clk 00:00:14]} Rh2
{[%emt 00:00:02] [%clk 00:00:07]} 1/2-1/2

[Site "Europe Echecs"]

[Event "Championnat d'Europe de Blitz"]
[Date "2024.12.09"]
[White "Alonso Rosell, Alvar"]
[Black "Kalezic, Blazo"]
[WhiteElo "2532"]
[BlackElo "2382"]
[Round "10.13"]
[Result "1-0"]
[TimeControl "180+2"]

1. d4 {[%emt 00:00:01] [%clk 00:03:02]} d5 {[%emt 00:00:01] [%clk 00:03:03]} 2.
Nf3 {[%emt 00:00:01] [%clk 00:03:03]} Nf6 {[%emt 00:00:01] [%clk 00:03:03]} 3.
e3 {[%emt 00:00:02] [%clk 00:03:04]} c6 {[%emt 00:00:08] [%clk 00:02:57]} 4. h3
{[%emt 00:00:01] [%clk 00:03:04]} Bf5 {[%emt 00:00:04] [%clk 00:02:54]} 5. Nh4
{[%emt 00:00:02] [%clk 00:03:05]} Be4 {[%emt 00:00:11] [%clk 00:02:45]} 6. Nd2
{[%emt 00:00:03] [%clk 00:03:05]} e6 {[%emt 00:00:05] [%clk 00:02:42]} 7. Nhf3
{[%emt 00:00:07] [%clk 00:02:59]} Nbd7 {[%emt 00:00:04] [%clk 00:02:40]} 8. Nxe4
{[%emt 00:00:03] [%clk 00:02:59]} Nxe4 {[%clk 00:02:40]} 9. Bd3 {[%emt 00:00:13]
[%clk 00:02:48]} f5 {[%emt 00:00:03] [%clk 00:02:39]} 10. c3 {[%emt 00:00:14]
[%clk 00:02:36]} Bd6 {[%emt 00:00:02] [%clk 00:02:39]} 11. Qc2 {[%emt 00:00:48]
[%clk 00:01:51]} O-O {[%emt 00:00:02] [%clk 00:02:38]} 12. b3 {[%emt 00:00:12]
[%clk 00:01:41]} Rc8 {[%emt 00:00:04] [%clk 00:02:36]} 13. Bb2 {[%emt 00:00:06]
[%clk 00:01:37]} c5 {[%emt 00:00:08] [%clk 00:02:30]} 14. O-O {[%emt 00:00:03]
[%clk 00:01:36]} cxd4 {[%emt 00:00:07] [%clk 00:02:25]} 15. exd4 {[%emt
00:00:04] [%clk 00:01:34]} Rf6 {[%emt 00:00:06] [%clk 00:02:21]} 16. c4 {[%emt
00:00:06] [%clk 00:01:30]} Rg6 {[%emt 00:00:05] [%clk 00:02:18]} 17. Qe2 {[%emt
00:00:10] [%clk 00:01:23]} Qe7 {[%emt 00:00:41] [%clk 00:01:39]} 18. Rac1 {[%emt
00:00:02] [%clk 00:01:22]} Rf8 {[%emt 00:00:03] [%clk 00:01:38]} 19. c5 {[%emt
00:00:11] [%clk 00:01:14]} Bf4 {[%clk 00:01:38]} 20. Rc2 {[%emt 00:00:06] [%clk
00:01:10]} e5 {[%emt 00:00:24] [%clk 00:01:16]} 21. Bb5 {[%emt 00:00:16] [%clk
00:00:56]} exd4 {[%emt 00:00:20] [%clk 00:00:59]} 22. c6 {[%emt 00:00:03] [%clk
00:00:55]} bxc6 {[%emt 00:00:08] [%clk 00:00:52]} 23. Bxc6 {[%emt 00:00:02]
[%clk 00:00:56]} Ndf6 {[%emt 00:00:08] [%clk 00:00:45]} 24. Nxd4 {[%emt
00:00:02] [%clk 00:00:56]} Bb8 {[%emt 00:00:05] [%clk 00:00:41]} 25. Nxf5 {[%emt
00:00:18] [%clk 00:00:41]} Qd8 {[%emt 00:00:17] [%clk 00:00:26]} 26. Bxf6 {[%emt
00:00:09] [%clk 00:00:34]} Rgxf6 {[%emt 00:00:06] [%clk 00:00:22]} 27. Bxd5+
{[%emt 00:00:02] [%clk 00:00:34]} Kh8 {[%emt 00:00:04] [%clk 00:00:20]} 28. Bxe4
{[%emt 00:00:01] [%clk 00:00:35]} Qe8 {[%emt 00:00:11] [%clk 00:00:12]} 29. Bd3
{[%emt 00:00:08] [%clk 00:00:28]} Qd7 {[%emt 00:00:04] [%clk 00:00:10]} 30. Qe7
{[%emt 00:00:05] [%clk 00:00:26]} Qxe7 {[%emt 00:00:05] [%clk 00:00:06]} 31.
Nxe7 {[%emt 00:00:01] [%clk 00:00:27]} 1-0

[Site "Europe Echecs"]

[Event "Championnat d'Europe de Blitz"]
[Date "2024.12.09"]
[White "Samunenkov, Ihor"]
[Black "Dardha, Daniel"]
[WhiteElo "2543"]
[BlackElo "2639"]
[Round "10.14"]
[Result "0-1"]
[TimeControl "180+2"]

1. d4 {[%emt 00:00:02] [%clk 00:03:01]} Nf6 {[%emt 00:00:01] [%clk 00:03:03]} 2.
c4 {[%emt 00:00:02] [%clk 00:03:01]} e6 {[%emt 00:00:02] [%clk 00:03:04]} 3. g3
{[%emt 00:00:01] [%clk 00:03:01]} c5 {[%emt 00:00:16] [%clk 00:02:50]} 4. d5
{[%emt 00:00:02] [%clk 00:03:01]} exd5 {[%emt 00:00:02] [%clk 00:02:50]} 5. cxd5
{[%emt 00:00:02] [%clk 00:03:01]} d6 {[%emt 00:00:01] [%clk 00:02:51]} 6. Nc3
{[%emt 00:00:03] [%clk 00:03:01]} g6 {[%clk 00:02:51]} 7. Nf3 {[%emt 00:00:02]
[%clk 00:03:01]} Bg7 {[%emt 00:00:02] [%clk 00:02:52]} 8. Bg2 {[%emt 00:00:01]
[%clk 00:03:01]} O-O {[%emt 00:00:03] [%clk 00:02:51]} 9. O-O {[%emt 00:00:03]
[%clk 00:03:00]} Re8 {[%emt 00:00:02] [%clk 00:02:51]} 10. Re1 {[%emt 00:00:06]
[%clk 00:02:57]} a6 {[%emt 00:00:04] [%clk 00:02:48]} 11. a4 {[%emt 00:00:02]
[%clk 00:02:57]} Nbd7 {[%emt 00:00:02] [%clk 00:02:49]} 12. Bf4 {[%emt 00:00:09]
[%clk 00:02:49]} Ng4 {[%emt 00:00:08] [%clk 00:02:43]} 13. h3 {[%emt 00:00:23]
[%clk 00:02:28]} Nge5 {[%emt 00:00:01] [%clk 00:02:44]} 14. Ne4 {[%emt 00:00:03]
[%clk 00:02:27]} Qc7 {[%emt 00:00:08] [%clk 00:02:38]} 15. Qc1 {[%emt 00:00:12]
[%clk 00:02:18]} Rb8 {[%emt 00:00:06] [%clk 00:02:34]} 16. Nxe5 {[%emt 00:00:19]
[%clk 00:02:01]} Rxe5 {[%emt 00:00:20] [%clk 00:02:16]} 17. Bxe5 {[%emt
00:00:09] [%clk 00:01:53]} Nxe5 {[%emt 00:00:03] [%clk 00:02:15]} 18. Qf4 {[%emt
00:00:28] [%clk 00:01:26]} Qe7 {[%emt 00:00:06] [%clk 00:02:12]} 19. g4 {[%emt
00:00:23] [%clk 00:01:05]} f5 {[%emt 00:00:08] [%clk 00:02:06]} 20. gxf5 {[%emt
00:00:07] [%clk 00:01:00]} Bxf5 {[%emt 00:00:02] [%clk 00:02:07]} 21. Qg5 {[%emt
00:00:17] [%clk 00:00:45]} Qf8 {[%emt 00:00:21] [%clk 00:01:47]} 22. Rad1 {[%emt
00:00:19] [%clk 00:00:28]} Re8 {[%emt 00:00:07] [%clk 00:01:42]} 23. Qg3 {[%emt
00:00:03] [%clk 00:00:26]} Nc4 {[%emt 00:00:12] [%clk 00:01:33]} 24. b3 {[%emt
00:00:03] [%clk 00:00:26]} Nb2 {[%emt 00:00:02] [%clk 00:01:32]} 25. Ng5 {[%emt
00:00:21] [%clk 00:00:07]} Nxd1 {[%emt 00:00:02] [%clk 00:01:33]} 26. Rxd1
{[%emt 00:00:01] [%clk 00:00:08]} Rxe2 {[%emt 00:00:12] [%clk 00:01:22]} 27. Qh4
{[%emt 00:00:02] [%clk 00:00:08]} h6 {[%emt 00:00:14] [%clk 00:01:11]} 28. Ne6
{[%clk 00:00:09]} Qf6 {[%emt 00:00:09] [%clk 00:01:04]} 29. Qg3 {[%emt 00:00:02]
[%clk 00:00:09]} Qe5 {[%emt 00:00:05] [%clk 00:01:01]} 30. Qxe5 {[%emt 00:00:07]
[%clk 00:00:03]} Bxe5 {[%emt 00:00:02] [%clk 00:01:01]} 31. Bf3 {[%emt 00:00:02]
[%clk 00:00:04]} Rb2 {[%emt 00:00:01] [%clk 00:01:02]} 32. Bg4 {[%clk 00:00:05]}
Rxb3 {[%emt 00:00:06] [%clk 00:00:58]} 33. Bxf5 {[%emt 00:00:01] [%clk
00:00:05]} gxf5 {[%emt 00:00:01] [%clk 00:00:59]} 34. f4 {[%emt 00:00:02] [%clk
00:00:06]} Bf6 {[%clk 00:01:00]} 35. a5 {[%emt 00:00:03] [%clk 00:00:04]} c4
{[%emt 00:00:02] [%clk 00:01:00]} 36. Re1 {[%emt 00:00:02] [%clk 00:00:04]} c3
{[%emt 00:00:02] [%clk 00:01:01]} 0-1

[Site "Europe Echecs"]